bitfinex-derivatives/quotes_BTCF0:USTF0_20250907
["timestamp","ask_amount","ask_price","bid_price","bid_amount"]
[1757207371141,0.08330802,110450.0,110440.0,1.19966589]
[1757207375251,0.08330802,110450.0,110440.0,1.11857768]
[1757207375844,0.08330802,110450.0,110440.0,1.28270073]
[1757207376347,0.08330802,110450.0,110440.0,1.01961305]
[1757207376348,0.08314007,110450.0,110440.0,1.01961305]
[1757207376540,0.01394784,110450.0,110440.0,1.28270073]
[1757207376948,0.00488179,110450.0,110440.0,1.28270073]
[1757207378150,0.00488179,110450.0,110440.0,1.40134409]
[1757207378354,0.00488179,110450.0,110440.0,1.23874104]
[1757207380256,0.00488179,110450.0,110440.0,1.50182872]
[1757207380444,0.00488179,110450.0,110440.0,1.56874104]
[1757207380953,0.00488179,110450.0,110440.0,1.83182872]
[1757207381143,0.00488179,110450.0,110440.0,1.56874104]
[1757207381343,0.00488179,110450.0,110440.0,1.23874104]
[1757207384856,0.00488179,110450.0,110440.0,1.32926364]
[1757207385360,0.00950699,110460.0,110450.0,0.03532]
[1757207385543,0.00940699,110460.0,110450.0,0.81359176]
[1757207385747,0.00940699,110460.0,110450.0,0.92715512]
[1757207386058,0.00013586,110460.0,110450.0,0.92715512]
[1757207386259,0.0001,110470.0,110460.0,0.1275063]
[1757207386448,0.02122,110480.0,110470.0,0.037]
[1757207386754,0.03504,110480.0,110470.0,0.41365104]
[1757207386948,0.59504,110480.0,110470.0,0.41365104]
[1757207387148,0.28504,110480.0,110470.0,0.41365104]
[1757207387350,0.59504,110480.0,110470.0,0.41365104]
[1757207387552,0.59904,110480.0,110470.0,0.41365104]
[1757207387756,0.28904,110480.0,110470.0,0.41365104]
[1757207388448,0.61904,110480.0,110470.0,0.41365104]
[1757207388655,0.30098805,110480.0,110470.0,0.41365104]
[1757207388954,0.63098805,110480.0,110470.0,0.41365104]
[1757207390253,0.70471669,110480.0,110470.0,0.41365104]
[1757207391554,0.44079669,110480.0,110470.0,0.41365104]
[1757207393154,0.44079669,110480.0,110470.0,0.15056336]
[1757207393354,0.44079669,110480.0,110470.0,0.41365104]
[1757207393659,0.44079669,110480.0,110470.0,0.38113244]
[1757207394758,0.44079669,110480.0,110470.0,1.21413244]
[1757207395655,0.44079669,110480.0,110470.0,0.95104476]
[1757207395861,0.44079669,110480.0,110470.0,1.21413244]
[1757207396062,0.44079669,110480.0,110470.0,0.38113244]
[1757207396261,0.44079669,110480.0,110470.0,1.21409244]
[1757207401471,0.44079669,110480.0,110470.0,1.47671008]
[1757207401857,0.11079669,110480.0,110470.0,1.47687008]
[1757207402059,0.45079669,110480.0,110470.0,1.47687008]
[1757207402259,0.44079669,110480.0,110470.0,1.47687008]
[1757207402560,0.11079669,110480.0,110470.0,1.47687008]
[1757207403059,0.46079669,110480.0,110470.0,1.47687008]
[1757207403256,0.46079669,110480.0,110470.0,1.39582532]
[1757207403460,0.46079669,110480.0,110470.0,0.56270532]
[1757207403664,0.46079669,110480.0,110470.0,1.47689735]
[1757207405065,0.11079669,110480.0,110470.0,1.47689735]
[1757207405361,0.11089669,110480.0,110470.0,1.47689735]
[1757207406060,0.10589669,110480.0,110470.0,1.47689735]
[1757207406265,0.47889669,110480.0,110470.0,1.47689735]
[1757207406567,0.10889669,110480.0,110470.0,1.47689735]
[1757207407267,0.44889669,110480.0,110470.0,1.47689735]
[1757207408264,0.44889669,110480.0,110470.0,1.47717735]
[1757207408665,0.10889669,110480.0,110470.0,1.47717735]
[1757207408964,0.41889669,110480.0,110470.0,1.47717735]
[1757207409165,0.41889669,110480.0,110470.0,1.39610532]
[1757207409667,0.10889669,110480.0,110470.0,1.39610532]
[1757207410067,0.10889669,110480.0,110470.0,1.41454382]
[1757207410266,0.08777669,110480.0,110470.0,1.41454382]
[1757207411768,0.08777669,110480.0,110470.0,1.52815225]
[1757207412373,0.08777669,110480.0,110470.0,1.79100491]
[1757207412574,0.08777669,110480.0,110470.0,1.41454382]
[1757207413364,0.03504,110530.0,110520.0,0.02317]
[1757207413570,0.65789266,110530.0,110520.0,0.0810916]
[1757207413870,0.65789266,110530.0,110520.0,0.34394426]
[1757207414068,0.90789266,110530.0,110520.0,0.34394426]
[1757207414264,0.4759109,110530.0,110520.0,0.62996692]
[1757207414768,0.7259109,110530.0,110520.0,0.36711426]
[1757207415076,0.99376356,110530.0,110520.0,0.26285266]
[1757207415370,0.99376356,110530.0,110520.0,0.34382778]
[1757207415869,0.7309109,110530.0,110520.0,0.08097512]
[1757207416070,0.7309109,110530.0,110520.0,0.34382778]
[1757207416372,0.7309109,110530.0,110520.0,0.36699778]
[1757207416575,0.7359109,110530.0,110520.0,0.36699778]
[1757207416965,0.7309109,110530.0,110520.0,0.36699778]
[1757207417166,0.7329109,110530.0,110520.0,0.36699778]
[1757207417463,0.7299109,110530.0,110520.0,0.36699778]
[1757207420576,0.7299109,110530.0,110520.0,0.28602266]
[1757207422469,0.7299109,110530.0,110520.0,0.54887532]
[1757207423868,1.5700309,110530.0,110520.0,0.54887532]
[1757207425676,1.5700309,110530.0,110520.0,0.28602266]
[1757207426975,1.5700309,110530.0,110520.0,0.54887532]
[1757207426976,1.5698309,110530.0,110520.0,0.54887532]
[1757207427177,0.4799109,110530.0,110520.0,0.54887532]
[1757207427377,1.3198309,110530.0,110520.0,0.54887532]
[1757207429174,1.58268356,110530.0,110520.0,0.02317]
[1757207429373,0.03593,110520.0,110510.0,0.0416913]
[1757207429573,0.36593,110520.0,110510.0,0.0416913]
[1757207429981,1.20649,110520.0,110510.0,0.0416913]
[1757207430472,1.20649,110520.0,110510.0,0.30454396]
[1757207430778,1.20949,110520.0,110510.0,0.30454396]
[1757207430979,1.21149,110520.0,110510.0,0.30454396]
[1757207435380,1.21149,110520.0,110510.0,0.38551908]
[1757207435579,1.21159,110520.0,110510.0,0.38551908]
[1757207436675,1.21123,110520.0,110510.0,0.38551908]
[1757207437481,1.21131,110520.0,110510.0,0.64837174]
[1757207437677,1.21131,110520.0,110510.0,0.89837174]
[1757207437872,0.3351,110520.0,110510.0,0.82430662]
[1757207438071,1.17586,110520.0,110510.0,0.90528174]
[1757207438278,1.21179,110520.0,110510.0,0.90528174]
[1757207438480,0.37103,110520.0,110510.0,0.90528174]
[1757207438681,0.3351,110520.0,110510.0,0.90528174]
[1757207439383,0.3341,110520.0,110510.0,0.57430662]
[1757207439584,0.3341,110520.0,110510.0,0.91477232]
[1757207439782,0.0041,110520.0,110510.0,1.59115323]
[1757207440183,0.0041,110520.0,110510.0,0.57430662]
[1757207440485,0.3821,110520.0,110510.0,0.57430662]
[1757207440983,0.0021,110520.0,110510.0,0.57430662]
[1757207442182,0.3221,110520.0,110510.0,0.57430662]
[1757207442884,0.0021,110520.0,110510.0,0.57430662]
[1757207443384,0.3821,110520.0,110510.0,0.57430662]
[1757207444291,0.0021,110520.0,110510.0,0.57430662]
[1757207446289,0.3821,110520.0,110510.0,0.57430662]
[1757207447191,0.41759,110520.0,110510.0,0.57630662]
[1757207447592,0.41659,110520.0,110510.0,0.57730662]
[1757207447892,0.40331,110520.0,110510.0,0.57730662]
[1757207448088,0.3801,110520.0,110510.0,0.57730662]
[1757207448393,0.0001,110520.0,110510.0,0.82730662]
[1757207448794,0.0001,110520.0,110510.0,0.82830662]
[1757207449289,0.0001,110520.0,110510.0,1.67278662]
[1757207449795,0.0001,110520.0,110510.0,1.78608534]
[1757207450694,0.0001,110520.0,110510.0,2.048938]
[1757207451697,0.3801,110520.0,110510.0,2.048938]
[1757207451895,0.3801,110520.0,110510.0,1.7991465]
[1757207452197,0.0001,110520.0,110510.0,1.7991465]
[1757207453590,0.0001,110520.0,110510.0,1.68584778]
[1757207455497,0.3701,110520.0,110510.0,1.68584778]
[1757207457798,0.3701,110520.0,110510.0,1.94870044]
[1757207457991,0.0001,110520.0,110510.0,1.94870044]
[1757207458397,0.0001,110520.0,110510.0,1.68584778]
[1757207458899,0.0001,110520.0,110510.0,1.94870044]
[1757207459801,0.0001,110520.0,110510.0,1.68584778]
[1757207460497,0.01338,110520.0,110510.0,1.68584778]
[1757207460899,0.41505,110520.0,110510.0,1.15798246]
[1757207461087,0.41505,110520.0,110510.0,1.68368778]
[1757207461492,0.41505,110520.0,110510.0,0.32137543]
[1757207461693,0.41505,110520.0,110510.0,1.263741]
[1757207461889,0.41505,110520.0,110510.0,1.52636397]
[1757207462095,0.41505,110520.0,110510.0,1.41305724]
[1757207465002,0.03505,110520.0,110510.0,1.41305724]
[1757207465301,0.0001,110520.0,110510.0,1.41996724]
[1757207465703,0.0001,110520.0,110510.0,1.53327397]
[1757207468206,0.0001,110520.0,110510.0,1.270651]
[1757207470603,0.0001,110520.0,110510.0,1.15734427]
[1757207471904,0.03505,110520.0,110510.0,0.02713586]
[1757207472202,0.28505,110520.0,110510.0,0.02713586]
[1757207472402,0.28505,110520.0,110510.0,0.40334195]
[1757207475607,0.28505,110520.0,110510.0,0.28975883]
[1757207477116,0.28505,110520.0,110510.0,0.02713586]
[1757207477318,0.28505,110520.0,110510.0,0.28975883]
[1757207477616,0.28505,110520.0,110510.0,0.40334195]
[1757207478519,0.28505,110520.0,110510.0,0.28975883]
[1757207479216,0.28505,110520.0,110510.0,0.40334195]
[1757207480616,0.28505,110520.0,110510.0,0.28975883]
[1757207482218,0.28505,110520.0,110510.0,0.40334195]
[1757207483319,0.28505,110520.0,110510.0,0.28975883]
[1757207485119,0.28505,110520.0,110510.0,0.40334195]
[1757207485310,0.28505,110520.0,110510.0,0.28975883]
[1757207486518,0.03505,110520.0,110510.0,0.11771898]
[1757207487019,0.03505,110520.0,110510.0,0.00413586]
[1757207487817,0.28505,110520.0,110510.0,0.00413586]
[1757207488620,1.12365,110520.0,110510.0,0.00413586]
[1757207488922,1.75627297,110520.0,110510.0,0.08511386]
[1757207490122,1.49365,110520.0,110510.0,0.08511386]
[1757207490322,1.75627297,110520.0,110510.0,0.08511386]
[1757207490721,1.75627297,110520.0,110510.0,0.00413586]
[1757207491726,1.75627297,110520.0,110510.0,0.00213586]
[1757207491920,1.75627297,110520.0,110510.0,0.00013586]
[1757207492224,1.49365,110520.0,110510.0,0.00013586]
[1757207492427,1.75627297,110520.0,110510.0,0.00013586]
[1757207492727,0.03487,110510.0,110500.0,0.0001]
[1757207492917,0.03487,110500.0,110490.0,0.36529097]
[1757207493225,0.37497,110500.0,110490.0,0.36509097]
[1757207494128,0.37497,110500.0,110490.0,0.28411297]
[1757207494527,0.37497,110500.0,110490.0,0.28611297]
[1757207495727,0.37497,110500.0,110490.0,0.28811297]
[1757207501536,0.03497,110500.0,110490.0,0.28811297]
[1757207502236,0.40497,110500.0,110490.0,0.28811297]
[1757207505530,0.03497,110500.0,110490.0,0.28811297]
[1757207506335,0.39497,110500.0,110490.0,0.28811297]
[1757207508437,0.03497,110500.0,110490.0,0.28811297]
[1757207509438,0.36497,110500.0,110490.0,0.28811297]
[1757207510442,0.03497,110500.0,110490.0,0.28811297]
[1757207510640,0.39497,110500.0,110490.0,0.28811297]
[1757207511840,0.03497,110500.0,110490.0,0.28811297]
[1757207512041,0.38497,110500.0,110490.0,0.28811297]
[1757207512439,0.38497,110500.0,110490.0,0.40169609]
[1757207512936,0.38497,110500.0,110490.0,0.28811297]
[1757207513540,0.38497,110500.0,110490.0,0.40169609]
[1757207514345,0.38497,110500.0,110490.0,0.13907312]
[1757207514640,0.89759297,110500.0,110490.0,0.19864696]
[1757207514836,0.89759297,110500.0,110490.0,0.004]
[1757207515146,0.89759297,110500.0,110490.0,0.07408332]
[1757207515337,0.89759297,110500.0,110490.0,0.06708332]
[1757207515535,0.01388,110490.0,110480.0,0.0002]
[1757207515736,0.03651,110480.0,110470.0,0.11378312]
[1757207515935,0.03661,110480.0,110470.0,0.13469312]
[1757207516141,0.37661,110480.0,110470.0,0.13469312]
[1757207516343,0.37661,110480.0,110470.0,0.02111]
[1757207516841,0.39661,110480.0,110470.0,0.02111]
[1757207517236,0.35661,110480.0,110470.0,0.02111]
[1757207517436,0.35661,110480.0,110470.0,0.02211]
[1757207518243,0.35661,110480.0,110470.0,0.02311]
[1757207518939,0.03661,110480.0,110470.0,0.02311]
[1757207519141,0.37661,110480.0,110470.0,0.02311]
[1757207521440,0.63955829,110480.0,110470.0,0.28605829]
[1757207521742,0.31955829,110480.0,110470.0,0.28605829]
[1757207522043,0.46955829,110480.0,110470.0,0.28605829]
[1757207522544,0.67955829,110480.0,110470.0,0.28605829]
[1757207522746,0.31955829,110480.0,110470.0,0.28605829]
[1757207522944,0.29955829,110480.0,110470.0,0.28605829]
[1757207523143,0.64955829,110480.0,110470.0,0.28605829]
[1757207523748,0.29955829,110480.0,110470.0,0.28605829]
[1757207523947,0.46955829,110480.0,110470.0,0.28605829]
[1757207524246,0.61955829,110480.0,110470.0,0.28605829]
[1757207524549,0.61955829,110480.0,110470.0,0.36709577]
[1757207527147,0.61955829,110480.0,110470.0,0.10414748]
[1757207527448,0.61955829,110480.0,110470.0,0.36709577]
[1757207528148,0.31955829,110480.0,110470.0,0.36709577]
[1757207528746,0.66955829,110480.0,110470.0,0.34598577]
[1757207529951,0.29955829,110480.0,110470.0,0.08303748]
[1757207530445,0.29955829,110480.0,110470.0,0.34598577]
[1757207531650,0.29955829,110480.0,110470.0,0.08303748]
[1757207531852,0.29955829,110480.0,110470.0,0.002]
[1757207532451,0.56250658,110480.0,110470.0,0.002]
[1757207532752,0.81250658,110480.0,110470.0,0.002]
[1757207533851,0.81250658,110480.0,110460.0,0.34418577]
[1757207534149,1.13213829,110470.0,110460.0,0.34418577]
[1757207534349,1.13223829,110470.0,110460.0,0.34398577]
[1757207535349,1.20627039,110470.0,110460.0,0.34398577]
[1757207535549,1.20591039,110470.0,110460.0,0.36509577]
[1757207536553,1.20591039,110470.0,110460.0,0.36609577]
[1757207536953,1.20591039,110470.0,110460.0,0.36709577]
[1757207537654,0.37359039,110470.0,110460.0,0.36709577]
[1757207537851,1.20555039,110470.0,110460.0,0.36709577]
[1757207538351,0.1106421,110470.0,110460.0,0.36709577]
[1757207538550,0.9426021,110470.0,110460.0,0.63004406]
[1757207541853,1.20555039,110470.0,110460.0,0.10414748]
[1757207542047,1.20555039,110470.0,110460.0,0.63004406]
[1757207543455,1.20555039,110470.0,110460.0,0.54900658]
[1757207546557,0.1106421,110470.0,110460.0,0.54900658]
[1757207546763,0.1106421,110470.0,110460.0,0.6754397]
[1757207546956,0.7393221,110470.0,110460.0,0.6754397]
[1757207548956,0.7393221,110470.0,110460.0,0.54900658]
[1757207550368,0.7393221,110470.0,110460.0,0.56996906]
[1757207550969,0.7393221,110470.0,110460.0,0.68361341]
[1757207552965,0.7393221,110470.0,110460.0,0.56996906]
[1757207556072,0.7393221,110470.0,110460.0,0.04407248]
[1757207556272,0.7393221,110470.0,110460.0,0.56996906]
[1757207562575,0.1106421,110470.0,110460.0,0.56996906]
[1757207562775,0.9403621,110470.0,110460.0,0.56996906]
[1757207562976,0.9403621,110470.0,110460.0,0.68361341]
[1757207573700,0.9403621,110470.0,110460.0,0.15771683]
[1757207573889,0.9403621,110470.0,110460.0,0.68361341]
[1757207575702,1.20331039,110470.0,110460.0,0.04407248]
[1757207575902,1.20331039,110470.0,110460.0,0.42528296]
[1757207576499,0.9403621,110470.0,110460.0,0.42528296]
[1757207576699,1.20331039,110470.0,110460.0,0.42528296]
[1757207577700,1.20331039,110470.0,110460.0,0.16233467]
[1757207577896,1.20331039,110470.0,110460.0,0.42528296]
[1757207578098,1.20331039,110470.0,110460.0,0.16233467]
[1757207578297,1.20331039,110470.0,110460.0,0.42528296]
[1757207580808,1.20331039,110470.0,110460.0,0.31154077]
[1757207581008,1.20331039,110470.0,110460.0,0.42528689]
[1757207583404,0.9403621,110470.0,110460.0,0.1623386]
[1757207583608,0.9403621,110470.0,110460.0,0.1412286]
[1757207583807,0.9403621,110470.0,110460.0,0.1635986]
[1757207590920,0.9403621,110470.0,110460.0,0.1412286]
[1757207593219,0.9403621,110470.0,110460.0,0.1635986]
[1757207595314,0.9403621,110470.0,110460.0,0.1412286]
[1757207595806,0.9403621,110470.0,110460.0,0.1635986]
[1757207596319,0.9403621,110470.0,110460.0,0.42658901]
[1757207598321,0.9403621,110470.0,110460.0,0.40421901]
[1757207598923,0.9403621,110470.0,110460.0,0.1412286]
[1757207602120,0.9403621,110470.0,110460.0,0.22246154]
[1757207602521,0.9403621,110470.0,110460.0,0.10871542]
[1757207603825,0.9403621,110470.0,110460.0,0.13065542]
[1757207604718,0.9403621,110470.0,110460.0,0.04942248]
[1757207604925,0.9403621,110470.0,110460.0,0.31241289]
[1757207608226,0.9403621,110470.0,110460.0,0.30241289]
[1757207612030,0.9403621,110470.0,110460.0,0.41615901]
[1757207614033,0.1106421,110470.0,110460.0,0.41615901]
[1757207614233,0.9393221,110470.0,110460.0,0.41615901]
[1757207622737,0.1106421,110470.0,110460.0,0.41615901]
[1757207622938,0.9392821,110470.0,110460.0,0.41615901]
[1757207628943,0.9392821,110470.0,110460.0,0.30241289]
[1757207638751,0.9392821,110470.0,110460.0,0.41615901]
[1757207642956,0.9292821,110470.0,110460.0,0.41615901]
[1757207644557,0.9292821,110470.0,110460.0,0.49038901]
[1757207644757,0.9284021,110470.0,110460.0,0.49038901]
[1757207645451,0.9284021,110470.0,110460.0,0.75333096]
[1757207645647,0.9284021,110470.0,110460.0,0.63958484]
[1757207649655,0.9284021,110470.0,110460.0,0.75335973]
[1757207652664,1.19136828,110470.0,110460.0,0.75335973]
[1757207653668,0.36360828,110470.0,110460.0,0.75335973]
[1757207653968,1.19132828,110470.0,110460.0,0.75335973]
[1757207656674,1.19132828,110470.0,110460.0,0.63958484]
[1757207657970,0.9283621,110470.0,110460.0,0.63958484]
[1757207659170,1.19132828,110470.0,110460.0,0.63958484]
[1757207661771,0.9283621,110470.0,110460.0,0.63958484]
[1757207661969,1.19132828,110470.0,110460.0,0.63958484]
[1757207664877,0.36360828,110470.0,110460.0,0.63958484]
[1757207665067,1.19124828,110470.0,110460.0,0.63958484]
[1757207665670,0.36360828,110470.0,110460.0,0.63958484]
[1757207665870,0.1006421,110470.0,110460.0,0.65339484]
[1757207666074,0.9282421,110470.0,110460.0,0.65339484]
[1757207666674,0.9282421,110470.0,110460.0,0.63958484]
[1757207667176,0.9282421,110470.0,110460.0,0.75336204]
[1757207669575,0.1006421,110470.0,110460.0,0.22742968]
[1757207669773,0.9282421,110470.0,110460.0,0.75336204]
[1757207672676,0.9282421,110470.0,110460.0,0.74039956]
[1757207677086,0.9281621,110470.0,110460.0,0.74039956]
[1757207679487,0.9281621,110470.0,110460.0,0.66616956]
[1757207680588,0.1006421,110470.0,110460.0,0.66616956]
[1757207680788,0.9281221,110470.0,110460.0,0.66616956]
[1757207682789,0.9281221,110470.0,110460.0,0.1402372]
[1757207682990,0.1006421,110470.0,110460.0,0.55239236]
[1757207683191,0.9280821,110470.0,110460.0,0.66616214]
[1757207687393,0.1006421,110470.0,110460.0,0.67894214]
[1757207687595,0.9280021,110470.0,110460.0,0.67894214]
[1757207687788,0.9280021,110470.0,110460.0,0.56517236]
[1757207688298,0.9280021,110470.0,110460.0,0.67892368]
[1757207688592,0.9280021,110470.0,110460.0,0.56517236]
[1757207691092,0.9280021,110470.0,110460.0,0.67890929]
[1757207694298,0.9280021,110470.0,110460.0,0.56517236]
[1757207696400,0.9280021,110470.0,110460.0,0.03924]
[1757207696602,0.9280021,110470.0,110460.0,0.56517236]
[1757207696898,0.9280021,110470.0,110460.0,0.6788983]
[1757207697099,0.9280021,110470.0,110460.0,0.56517236]
[1757207705518,0.9280021,110470.0,110460.0,0.30218295]
[1757207706819,0.1006421,110470.0,110460.0,0.30218295]
[1757207707017,0.1006421,110470.0,110460.0,0.41590656]
[1757207707219,0.8860421,110470.0,110460.0,0.41590656]
[1757207708520,0.1006421,110470.0,110460.0,0.41590656]
[1757207708826,0.9277221,110470.0,110460.0,0.41590656]
[1757207709517,0.9277221,110470.0,110460.0,0.40312656]
[1757207709818,0.9276821,110470.0,110460.0,0.40312656]
[1757207710424,0.1006421,110470.0,110460.0,0.40312656]
[1757207710619,0.8856821,110470.0,110460.0,0.40312656]
[1757207710819,0.9276821,110470.0,110460.0,0.40312656]
[1757207711321,0.1006421,110470.0,110460.0,0.40312656]
[1757207711623,0.9276821,110470.0,110460.0,0.40312656]
[1757207711822,0.1006421,110470.0,110460.0,0.40312656]
[1757207712225,0.8855221,110470.0,110460.0,0.40312656]
[1757207712622,0.1006421,110470.0,110460.0,0.40312656]
[1757207712825,0.9276421,110470.0,110460.0,0.40312656]
[1757207713327,0.1006421,110470.0,110460.0,0.40312656]
[1757207713928,0.8853621,110470.0,110460.0,0.40312656]
[1757207714226,0.8853621,110470.0,110460.0,0.41590656]
[1757207714721,0.1006421,110470.0,110460.0,0.40312656]
[1757207714926,0.8852421,110470.0,110460.0,0.40312656]
[1757207715415,0.1006421,110470.0,110460.0,0.40312656]
[1757207715619,0.8851621,110470.0,110460.0,0.40312656]
[1757207717523,0.8851621,110470.0,110460.0,0.41585656]
[1757207721531,0.8851621,110470.0,110460.0,0.30213295]
[1757207721829,0.8851621,110470.0,110460.0,0.41587324]
[1757207729235,0.8851621,110470.0,110460.0,0.14020029]
[1757207729435,0.8851621,110470.0,110460.0,0.40314324]
[1757207731841,0.8851621,110470.0,110460.0,0.28940295]
[1757207732438,0.8851621,110470.0,110460.0,0.4031435]
[1757207739441,0.8851621,110470.0,110460.0,0.28940295]
[1757207743642,0.8851621,110470.0,110460.0,0.02646]
[1757207743843,1.14810505,110470.0,110460.0,0.02646]
[1757207744341,1.39810505,110470.0,110460.0,0.1994663]
[1757207744546,1.39810505,110470.0,110460.0,0.11823721]
[1757207744744,1.39810505,110470.0,110460.0,0.00452]
[1757207746151,1.39810505,110470.0,110460.0,0.08573018]
[1757207747641,1.39810505,110470.0,110460.0,0.00452]
[1757207753154,1.39810505,110470.0,110460.0,0.08573018]
[1757207754954,1.14810505,110470.0,110460.0,0.00452]
[1757207762061,1.14810505,110470.0,110460.0,0.08573018]
[1757207763262,1.14810505,110470.0,110460.0,0.02853]
[1757207763562,1.18998505,110470.0,110460.0,0.02853]
[1757207764062,0.03391,110460.0,110450.0,0.18724981]
[1757207764358,0.05236978,110460.0,110450.0,0.18724981]
[1757207764562,0.31531273,110460.0,110450.0,0.0735326]
[1757207765163,0.31531273,110460.0,110450.0,0.0755326]
[1757207765364,1.14167273,110460.0,110450.0,0.0755326]
[1757207766065,1.15063099,110460.0,110450.0,0.0755326]
[1757207766263,1.15063099,110460.0,110450.0,0.002]
[1757207766564,1.15063099,110460.0,110450.0,0.004]
[1757207766966,0.32427099,110460.0,110450.0,0.004]
[1757207767167,1.15063099,110460.0,110450.0,0.004]
[1757207767363,0.32427099,110460.0,110450.0,0.004]
[1757207767562,1.41382732,110460.0,110450.0,0.004]
[1757207770562,1.41382732,110460.0,110450.0,0.11771721]
[1757207774771,0.03391,110450.0,110430.0,0.03654778]
[1757207774969,0.03391,110430.0,110420.0,0.28529964]
[1757207776165,0.03491,110430.0,110420.0,0.29029964]
[1757207776572,0.03491,110430.0,110420.0,0.55336928]
[1757207776876,0.03391,110430.0,110420.0,0.54836928]
[1757207777078,0.03391,110430.0,110420.0,0.54936928]
[1757207777878,0.03391,110430.0,110420.0,0.28629964]
[1757207779378,0.03391,110430.0,110420.0,0.53629964]
[1757207780877,0.29697964,110430.0,110420.0,0.53629964]
[1757207782280,0.03391,110430.0,110420.0,0.28629964]
[1757207782480,0.29697964,110430.0,110420.0,0.28629964]
[1757207782778,0.29707964,110430.0,110420.0,0.39981864]
[1757207783780,0.29707964,110430.0,110420.0,0.136749]
[1757207784081,0.29707964,110430.0,110420.0,0.39981864]
[1757207785181,0.29707964,110430.0,110420.0,0.28629964]
[1757207786183,0.29707964,110430.0,110420.0,0.02323]
[1757207786579,0.29707964,110430.0,110420.0,0.28629964]
[1757207787279,0.3154848,110430.0,110420.0,0.02323]
[1757207787480,0.3154848,110430.0,110420.0,0.28629964]
[1757207789879,0.3154848,110430.0,110420.0,0.02323]
[1757207792787,0.3154848,110430.0,110420.0,0.001]
[1757207794488,0.43432443,110430.0,110420.0,0.001]
[1757207795790,0.17125479,110430.0,110420.0,0.001]
[1757207795991,0.43432443,110430.0,110420.0,0.001]
[1757207803997,1.26044443,110430.0,110420.0,0.001]
[1757207806799,0.99737479,110430.0,110420.0,0.001]
[1757207806999,1.26040443,110430.0,110420.0,0.001]
[1757207816907,0.17125479,110430.0,110420.0,0.001]
[1757207817110,1.26028443,110430.0,110420.0,0.001]
[1757207819014,0.43432443,110430.0,110420.0,0.001]
[1757207819211,1.26024443,110430.0,110420.0,0.001]
[1757207820415,0.43432443,110430.0,110420.0,0.001]
[1757207820616,1.26024443,110430.0,110420.0,0.001]
[1757207823115,0.43432443,110430.0,110420.0,0.001]
[1757207823318,1.26020443,110430.0,110420.0,0.001]
[1757207825914,0.99713479,110430.0,110420.0,0.001]
[1757207826115,1.26020443,110430.0,110420.0,0.001]
[1757207829422,1.26033946,110430.0,110420.0,0.001]
[1757207831427,1.26033946,110430.0,110420.0,0.114519]
[1757207835131,1.26033946,110430.0,110420.0,0.001]
[1757207836236,1.26033946,110430.0,110420.0,0.07526]
[1757207848343,1.26033946,110430.0,110420.0,0.188779]
[1757207851243,1.26033946,110430.0,110420.0,0.07526]
[1757207854645,0.99713479,110430.0,110420.0,0.07526]
[1757207854847,1.26033946,110430.0,110420.0,0.07526]
[1757207858851,1.26033946,110430.0,110420.0,0.188779]
[1757207862558,1.26033946,110430.0,110420.0,0.07526]
[1757207864657,1.26033946,110430.0,110420.0,0.188779]
[1757207864848,1.26033946,110430.0,110420.0,0.07526]
[1757207872261,1.26033946,110430.0,110420.0,0.001]
[1757207875458,1.26033946,110430.0,110420.0,0.07526]
[1757207876163,1.26033946,110430.0,110420.0,0.188779]
[1757207876564,0.43445946,110430.0,110420.0,0.188779]
[1757207876764,1.25961946,110430.0,110420.0,0.188779]
[1757207878664,1.25961946,110430.0,110420.0,0.07526]
[1757207886262,0.43445946,110430.0,110420.0,0.07526]
[1757207886470,1.25949946,110430.0,110420.0,0.07526]
[1757207887962,0.43445946,110430.0,110420.0,0.07526]
[1757207888159,1.25945946,110430.0,110420.0,0.07526]
[1757207888464,0.99625479,110430.0,110420.0,0.47469367]
[1757207888772,0.98357479,110430.0,110420.0,0.48864367]
[1757207890372,0.98357479,110430.0,110420.0,0.37512467]
[1757207890873,0.98357479,110430.0,110420.0,0.11192]
[1757207891072,0.15857479,110430.0,110420.0,0.11192]
[1757207891275,0.98349479,110430.0,110420.0,0.11192]
[1757207891568,0.98349479,110430.0,110420.0,0.37506971]
[1757207891773,1.2466445,110430.0,110420.0,0.37506971]
[1757207892674,0.4217245,110430.0,110420.0,0.37506971]
[1757207892876,1.2466445,110430.0,110420.0,0.37506971]
[1757207894773,0.15857479,110430.0,110420.0,0.37506971]
[1757207894977,1.2466045,110430.0,110420.0,0.37506971]
[1757207895479,1.2466045,110430.0,110420.0,0.63821942]
[1757207895871,1.2466045,110430.0,110420.0,0.37506971]
[1757207896175,0.4217245,110430.0,110420.0,0.37506971]
[1757207896374,1.2465645,110430.0,110420.0,0.37506971]
[1757207896972,1.2465645,110430.0,110420.0,0.48858871]
[1757207897878,0.98341479,110430.0,110420.0,0.48858871]
[1757207898080,0.98341479,110430.0,110420.0,1.00173842]
[1757207898081,0.03973516,110430.0,110420.0,1.00173842]
[1757207898281,0.01850516,110430.0,110420.0,1.00173842]
[1757207898481,0.00023586,110440.0,110430.0,0.03524]
[1757207898775,0.00013586,110440.0,110430.0,0.31907713]
[1757207899381,0.00013586,110440.0,110430.0,0.43259613]
[1757207899882,0.00213586,110440.0,110430.0,0.43259613]
[1757207902385,0.00313586,110440.0,110430.0,0.43259613]
[1757207902581,0.00313586,110440.0,110430.0,0.50684613]
[1757207907087,0.02627586,110440.0,110430.0,0.50684613]
[1757207907485,0.00313586,110440.0,110430.0,0.50684613]
[1757207911789,0.02627586,110440.0,110430.0,0.50684613]
[1757207912589,0.00313586,110440.0,110430.0,0.50684613]
[1757207916797,0.02627586,110440.0,110430.0,0.50684613]
[1757207917197,0.00313586,110440.0,110430.0,0.50684613]
[1757207917496,0.00323586,110440.0,110430.0,0.50684613]
[1757207920201,0.02637586,110440.0,110430.0,0.50684613]
[1757207920398,0.00323586,110440.0,110430.0,0.50684613]
[1757207920902,0.02637586,110440.0,110430.0,0.50684613]
[1757207922302,0.00323586,110440.0,110430.0,0.50684613]
[1757207922701,0.02637586,110440.0,110430.0,0.50684613]
[1757207923202,0.00323586,110440.0,110430.0,0.50684613]
[1757207928407,0.02637586,110440.0,110430.0,0.39332713]
[1757207928921,0.02637586,110440.0,110430.0,0.50710164]
[1757207929108,0.00323586,110440.0,110430.0,0.50710164]
[1757207931004,0.00323586,110440.0,110430.0,0.77025135]
[1757207931404,0.00323586,110440.0,110430.0,0.65647684]
[1757207932307,0.00123586,110440.0,110430.0,0.65647684]
[1757207932704,0.00023586,110440.0,110430.0,0.90647684]
[1757207932904,0.00123586,110440.0,110430.0,0.90647684]
[1757207933507,0.00023586,110440.0,110430.0,0.90647684]
[1757207934106,0.00023586,110440.0,110430.0,1.20433742]
[1757207934409,0.00023586,110440.0,110430.0,1.89282117]
[1757207937614,0.00023586,110440.0,110430.0,1.89274117]